fUST/lending_fUST_20251112
["ID","MTS","AMOUNT","RATE_DAILY","PERIOD"]
[393661898,1762891846427,-1626.40508229,0.00037842,3]
[393661899,1762891846438,-151.0,0.00037852,2]
[393661900,1762891846448,-151.0,0.00037852,2]
[393661901,1762891846459,-151.0,0.00037852,31]
[393661902,1762891846470,-151.0,0.00037852,31]
[393661903,1762891846480,-151.0,0.00037852,31]
[393661904,1762891846490,-200.0,0.00037852,31]
[393661905,1762891846500,-200.0,0.00037852,31]
[393661906,1762891846510,-200.0,0.00037852,31]
[393661907,1762891846520,-200.0,0.00037852,31]
[393661908,1762891846529,-151.0,0.00037852,31]
[393661909,1762891846539,-281299.09455101,0.00037852,2]
[393661912,1762891846882,-220.89273789,0.00024889,2]
[393661913,1762891846891,-828.56,0.0003699,10]
[393661914,1762891846902,-254525.44458039,0.00037852,2]
[393661915,1762891846912,-150.04,0.00037896,60]
[393661916,1762891846921,-150.04,0.00037996,60]
[393661917,1762891846930,-305.92,0.00038082,23]
[393661918,1762891846940,-150.04,0.00038096,60]
[393661919,1762891846951,-1467.73230227,0.000381,120]
[393661920,1762891846960,-500.0,0.00038181,14]
[393661921,1762891846970,-500.0,0.00038181,14]
[393661922,1762891846980,-150.04,0.00038196,60]
[393661923,1762891846990,-150.04,0.00038296,60]
[393661924,1762891846999,-999.0,0.00038356,120]
[393661925,1762891847009,-150.04,0.00038396,120]
[393661926,1762891847019,-1521.71,0.000384,7]
[393661927,1762891847030,-150.04,0.00038496,120]
[393661928,1762891847041,-420.0,0.00038497,120]
[393661929,1762891847050,-2509.13,0.000385,14]
[393661930,1762891847062,-150.04,0.00038596,120]
[393661931,1762891847157,-1141.0,0.000386,22]
[393661932,1762891847167,-305.92,0.0003863,24]
[393661933,1762891847178,-150.04,0.00038696,120]
[393661935,1762891847188,-150.04,0.00038796,120]
[393661937,1762891847199,-150.04,0.00038896,120]
[393661938,1762891847209,-3639.74,0.0003899,2]
[393661939,1762891847220,-150.04,0.00038996,120]
[393661940,1762891847232,-35491.03,0.00039,14]
[393661941,1762891847243,-150.04,0.00039096,120]
[393661942,1762891847252,-165.440569,0.00039158,60]
[393661943,1762891847262,-305.92,0.00039178,25]
[393661944,1762891847272,-150.04,0.00039196,120]
[393661945,1762891847282,-156.0,0.000392,120]
[393661946,1762891847291,-150.04,0.00039296,120]
[393661947,1762891847301,-1467.73230227,0.000393,120]
[393661948,1762891847310,-150.04,0.00039396,120]
[393661949,1762891847320,-999.0,0.00039452,120]
[393661950,1762891847330,-150.04,0.00039496,120]
[393661951,1762891847340,-150.04,0.00039596,120]
[393661952,1762891847350,-150.04,0.00039696,120]
[393661953,1762891847359,-305.92,0.00039726,26]
[393661954,1762891847369,-150.04,0.00039796,120]
[393661955,1762891847378,-150.0,0.000398,5]
[393661956,1762891847388,-160.64998078,0.0003989,2]
[393661957,1762891847397,-150.04,0.00039896,120]
[393661958,1762891847406,-150.04,0.00039996,120]
[393661959,1762891847415,-394.11650354,0.00039999,31]
[393661960,1762891847425,-500.0,0.00039999,7]
[393661961,1762891847435,-500.0,0.00039999,31]
[393661962,1762891847444,-421.87963702,0.00039999,31]
[393661963,1762891847454,-281.39441246,0.00039999,7]
[393661964,1762891847463,-435.94903235,0.00039999,31]
[393661965,1762891847473,-500.0,0.00039999,7]
[393661966,1762891847483,-389.02583501,0.00039999,7]
[393661967,1762891847492,-551.25148089,0.00039999,7]
[393661968,1762891847501,-551.25148089,0.00039999,7]
[393661969,1762891847511,-551.25148089,0.00039999,7]
[393661970,1762891847520,-551.25148089,0.00039999,7]
[393661971,1762891847530,-551.25148089,0.00039999,7]
[393661972,1762891847539,-165.440569,0.0004,60]
[393661973,1762891847548,-165.440569,0.0004,32]
[393661974,1762891847557,-1651.543538,0.0004,32]
[393661975,1762891847567,-150.04,0.00040096,120]
[393661976,1762891847576,-150.04,0.00040196,120]
[393661977,1762891847585,-305.92,0.00040273,27]
[393661978,1762891847595,-150.04,0.00040296,120]
[393661979,1762891847605,-250.0,0.00040348,5]
[393661980,1762891847615,-150.04,0.00040396,120]
[393661981,1762891847624,-1467.73230227,0.000404,120]
[393661982,1762891847634,-150.04,0.00040496,120]
[393661983,1762891847644,-447.0,0.00040498,120]
[393661984,1762891847655,-2509.13,0.000405,14]
[393661985,1762891847666,-999.0,0.00040547,120]
[393661986,1762891847676,-215.25527676,0.00040548,2]
[393661987,1762891847687,-165.440569,0.00040555,3]
[393661988,1762891847698,-150.04,0.00040596,120]
[393661989,1762891847708,-891.36,0.00040681,30]
[393661990,1762891847717,-150.04,0.00040696,120]
[393661991,1762891847727,-150.04,0.00040796,120]
[393661992,1762891847736,-305.92,0.00040821,28]
[393661993,1762891847746,-150.04,0.00040896,120]
[393661994,1762891847755,-350.0,0.00040896,5]
[393661995,1762891847764,-150.04,0.00040996,120]
[393661996,1762891847774,-150.04,0.00041096,120]
[393661997,1762891847783,-177.12237069,0.000411,120]
[393661998,1762891847792,-177.12,0.000411,120]
[393661999,1762891847803,-290.71,0.000411,120]
[393662000,1762891847812,-193.64600031,0.000411,120]
[393662001,1762891847820,-193.64,0.000411,120]
[393662002,1762891847830,-150.04,0.00041196,120]
[393662003,1762891847839,-4159.7,0.00041283,2]
[393662004,1762891847853,-150.04,0.00041296,120]
[393662005,1762891847863,-156.0,0.000413,120]
[393662006,1762891847872,-305.92,0.00041369,29]
[393662007,1762891847882,-150.04,0.00041396,120]
[393662008,1762891847893,-450.0,0.00041444,10]
[393662009,1762891847903,-150.04,0.00041496,120]
[393662010,1762891847914,-150.04,0.00041596,120]
[393662011,1762891847924,-1467.73230227,0.000416,120]
[393662012,1762891847944,-999.0,0.00041643,120]
[393662013,1762891847954,-150.04,0.00041696,120]
[393662014,1762891847964,-150.04,0.00041796,120]
[393662015,1762891847975,-150.04,0.00041896,120]
[393662016,1762891847985,-305.92,0.00041917,30]
[393662017,1762891847995,-550.0,0.00041992,10]
[393662018,1762891848005,-150.04,0.00041996,120]
[393662019,1762891848016,-165.90830005,0.00042027,7]
[393662020,1762891848027,-150.04,0.00042096,120]
[393662021,1762891848037,-150.04,0.00042196,120]
[393662022,1762891848047,-150.04,0.00042296,120]
[393662023,1762891848058,-150.04,0.00042396,120]
[393662024,1762891848068,-202.0,0.000424,60]
[393662025,1762891848079,-305.92,0.00042465,31]
[393662026,1762891848092,-150.04,0.00042496,120]
[393662027,1762891848104,-474.0,0.00042498,120]
[393662028,1762891848113,-650.0,0.0004254,10]
[393662029,1762891848123,-150.04,0.00042596,120]
[393662030,1762891848133,-150.04,0.00042696,120]
[393662031,1762891848143,-165.0,0.00042712,120]
[393662032,1762891848153,-150.04,0.00042796,120]
[393662033,1762891848163,-150.04,0.00042896,120]
[393662034,1762891848172,-1467.73230227,0.000429,120]
[393662035,1762891848182,-150.04,0.00042996,120]
[393662036,1762891848191,-305.92,0.00043013,32]
[393662037,1762891848200,-750.0,0.00043088,10]
[393662038,1762891848210,-150.75379009,0.00043096,120]
[393662039,1762891848220,-1751.65728348,0.00043353,2]
[393662040,1762891848230,-156.0,0.000434,120]
[393662041,1762891848240,-305.92,0.00043561,33]
[393662042,1762891848249,-4679.66,0.00043577,2]
[393662043,1762891848259,-1114.21,0.00043587,30]
[393662044,1762891848270,-850.0,0.00043636,10]
[393662045,1762891848280,-394.8903454,0.00043842,30]
[393662046,1762891848289,-300.1421113,0.00043842,30]
[393662047,1762891848298,-441.5104549,0.00043842,30]
[393662048,1762891848308,-164.0963761,0.00043842,30]
[393662049,1762891848317,-394.8903454,0.00043842,30]
[393662050,1762891848326,-300.1421113,0.00043842,30]
[393662051,1762891848335,-164.0963761,0.00043842,30]
[393662052,1762891848344,-394.8903454,0.00043842,30]
[393662053,1762891848353,-300.1421113,0.00043842,30]
[393662054,1762891848362,-164.0963761,0.00043842,30]
[393662055,1762891848371,-394.8903454,0.00043842,30]
[393662056,1762891848380,-164.0963761,0.00043842,30]
[393662057,1762891848389,-300.1421113,0.00043842,30]
[393662058,1762891848398,-394.8903454,0.00043842,30]
[393662059,1762891848407,-164.0963761,0.00043842,30]
[393662060,1762891848416,-300.1421113,0.00043842,30]
[393662061,1762891848425,-394.8903454,0.00043842,30]
[393662062,1762891848435,-164.0963761,0.00043842,30]
[393662063,1762891848444,-300.1421113,0.00043842,30]
[393662064,1762891848454,-394.8903454,0.00043842,30]
[393662065,1762891848463,-164.0963761,0.00043842,30]
[393662066,1762891848473,-300.1421113,0.00043842,30]
[393662067,1762891848482,-394.8903454,0.00043842,30]
[393662068,1762891848491,-164.0963761,0.00043842,30]
[393662069,1762891848501,-300.1421113,0.00043842,30]
[393662070,1762891848511,-164.0963761,0.00043842,30]
[393662071,1762891848521,-394.8903454,0.00043842,30]
[393662072,1762891848531,-164.0963761,0.00043842,30]
[393662073,1762891848540,-369.5031744,0.00043842,30]
[393662074,1762891848550,-300.1421113,0.00043842,30]
[393662075,1762891848560,-191.1229622,0.00043842,30]
[393662076,1762891848570,-164.0963761,0.00043842,30]
[393662077,1762891848580,-300.1421113,0.00043842,30]
[393662078,1762891848589,-164.0963761,0.00043842,30]
[393662079,1762891848599,-191.1229622,0.00043842,30]
[393662080,1762891848608,-300.1421113,0.00043842,30]
[393662081,1762891848618,-164.0963761,0.00043842,30]
[393662082,1762891848627,-191.1229622,0.00043842,30]
[393662083,1762891848637,-300.1421113,0.00043842,30]
[393662084,1762891848647,-164.0963761,0.00043842,30]
[393662085,1762891848656,-191.1229622,0.00043842,30]
[393662086,1762891848665,-300.1421113,0.00043842,30]
[393662087,1762891848675,-164.0963761,0.00043842,30]
[393662088,1762891848684,-191.1229622,0.00043842,30]
[393662089,1762891848695,-300.1421113,0.00043842,30]
[393662090,1762891848706,-164.0963761,0.00043842,30]
[393662091,1762891848716,-191.1229622,0.00043842,30]
[393662092,1762891848725,-300.1421113,0.00043842,30]
[393662093,1762891848735,-191.1229622,0.00043842,30]
[393662094,1762891848744,-164.0963761,0.00043842,30]
[393662095,1762891848754,-191.1229622,0.00043842,30]
[393662096,1762891848764,-300.1421113,0.00043842,30]
[393662097,1762891848778,-164.0963761,0.00043842,30]
[393662098,1762891848792,-191.1229622,0.00043842,30]
[393662099,1762891848801,-300.1421113,0.00043842,30]
[393662100,1762891848811,-164.0963761,0.00043842,30]
[393662101,1762891848821,-191.1229622,0.00043842,30]
[393662102,1762891848830,-296.8376318,0.00043842,30]
[393662103,1762891848840,-153.0,0.00043842,30]
[393662104,1762891848849,-153.0,0.00043842,30]
[393662105,1762891848861,-153.0,0.00043842,30]
[393662106,1762891848871,-153.0,0.00043842,30]
[393662107,1762891848880,-153.0,0.00043842,30]
[393662108,1762891848890,-153.0,0.00043842,30]
[393662109,1762891848902,-153.0,0.00043842,30]
[393662110,1762891848912,-153.0,0.00043842,30]
[393662111,1762891848921,-153.0,0.00043842,30]
[393662112,1762891848931,-153.0,0.00043842,30]
[393662113,1762891848946,-153.0,0.00043842,30]
[393662114,1762891848956,-153.0,0.00043842,30]
[393662115,1762891848967,-153.0,0.00043842,30]
[393662116,1762891848976,-153.0,0.00043842,30]
[393662117,1762891848986,-153.0,0.00043842,30]
[393662118,1762891848995,-153.0,0.00043842,30]
[393662119,1762891849005,-153.0,0.00043842,30]
[393662120,1762891849015,-153.0,0.00043842,30]
[393662121,1762891849024,-153.0,0.00043842,30]
[393662122,1762891849033,-153.0,0.00043842,30]
[393662123,1762891849043,-153.0,0.00043842,30]
[393662124,1762891849052,-153.0,0.00043842,30]
[393662125,1762891849062,-153.0,0.00043842,30]
[393662126,1762891849071,-307.9707659,0.00043842,30]
[393662127,1762891849080,-172.82985042,0.00043918,30]
[393662128,1762891849089,-200.0,0.00044049,120]
[393662129,1762891849099,-200.0,0.00044049,120]
[393662130,1762891849108,-200.0,0.00044049,120]
[393662131,1762891849119,-305.92,0.00044109,34]
[393662132,1762891849128,-222.10120636,0.00044164,120]
[393662133,1762891849138,-848.64354456,0.00044184,10]
[393662134,1762891849147,-172.82985042,0.00044493,30]
[393662135,1762891849156,-501.0,0.00044498,120]
[393662136,1762891849166,-305.92,0.00044657,35]
[393662137,1762891849175,-305.92,0.00045205,36]
[393662138,1762891849184,-202.0,0.0004528,68]
[393662139,1762891849195,-156.0,0.000455,120]
[393662140,1762891849204,-305.96,0.00045753,37]
[393662141,1762891849214,-5199.62,0.0004587,2]
[393662142,1762891849224,-1521.71,0.00046,14]
[393662143,1762891849236,-172.00788497,0.00046301,30]
[393662144,1762891849247,-1337.05,0.00046493,30]
[393662145,1762891849257,-528.0,0.00046498,120]
[393662146,1762891849268,-200.0,0.0004691,120]
[393662147,1762891849278,-2509.13,0.00047,14]
[393662148,1762891849287,-165.440569,0.00047231,2]
[393662149,1762891849297,-160.0,0.00047387,3]
[393662150,1762891849306,-156.0,0.000476,120]
[393662151,1762891849316,-202.0,0.0004817,76]
[393662152,1762891849327,-555.0,0.00048498,120]
[393662153,1762891849337,-1559.89,0.00049398,30]
[393662154,1762891849347,-156.0,0.000497,120]
[393662155,1762891849430,-160.0,0.00050492,4]
[393662156,1762891849440,-582.0,0.00050498,120]
[393662157,1762891849451,-150.0,0.00051,85]
[393662158,1762891849461,-202.0,0.0005105,84]
[393662159,1762891849471,-156.0,0.000518,120]
[393662160,1762891849481,-1782.73,0.00052304,30]
[393662161,1762891849491,-609.0,0.00052498,120]
[393662162,1762891849502,-35491.03,0.00053,14]
[393662163,1762891849512,-160.0,0.00053596,5]
[393662164,1762891849522,-2521.80614005,0.00053753,120]
[393662165,1762891849531,-156.0,0.000539,120]
[393662166,1762891849541,-1235.22750084,0.0005413,3]
[393662167,1762891849551,-161.65955071,0.00054498,120]
[393662168,1762891849560,-500.0,0.00054794,2]
[393662169,1762891849570,-500.0,0.00054794,2]
[393662170,1762891849580,-500.0,0.00054794,2]
[393662171,1762891849589,-500.0,0.00054794,30]
[393662172,1762891849602,-500.0,0.00054794,2]
[393662173,1762891849611,-500.0,0.00054794,2]
[393662174,1762891849621,-1000.0,0.00054794,2]
[393662175,1762891849631,-500.0,0.00054794,3]
[393662176,1762891849641,-500.0,0.00054794,2]
[393662177,1762891849651,-500.0,0.00054794,120]
[393662178,1762891849661,-151.0,0.00054794,120]
[393662179,1762891849670,-427.625,0.00054794,120]
[393662180,1762891849679,-262.151215,0.00054794,120]
[393662181,1762891849689,-2790.82,0.00054794,120]
[393662182,1762891849700,-500.0,0.00054794,120]
[393662183,1762891849712,-500.0,0.00054794,30]
[393662184,1762891849722,-500.0,0.00054794,2]
[393662185,1762891849732,-500.0,0.00054794,2]
[393662186,1762891849741,-153.0,0.00054795,120]
[393662187,1762891849751,-153.0,0.00054795,120]
[393662188,1762891849760,-500.0,0.00055068,2]
[393662189,1762891849770,-500.0,0.00055068,2]
[393662190,1762891849780,-500.0,0.00055068,2]
[393662191,1762891849789,-500.0,0.00055068,30]
[393662192,1762891849799,-500.0,0.00055068,2]
[393662193,1762891849808,-500.0,0.00055068,2]
[393662194,1762891849818,-151.0,0.00055068,2]
[393662195,1762891849828,-151.0,0.00055068,2]
[393662196,1762891849837,-871.86679009,0.00055068,2]
[393662197,1762891849854,-500.0,0.00055068,3]
[393662198,1762891849867,-500.0,0.00055068,2]
[393662199,1762891849876,-500.0,0.00055068,120]
[393662200,1762891849887,-2790.82,0.00055068,120]
[393662201,1762891849896,-500.0,0.00055068,120]
[393662202,1762891849907,-500.0,0.00055068,30]
[393662203,1762891849916,-500.0,0.00055068,2]
[393662204,1762891849926,-500.0,0.00055068,2]
[393662205,1762891849935,-2005.57,0.0005521,30]
[393662206,1762891849944,-682.47599593,0.0005528,28]
[393662207,1762891849953,-500.0,0.00055342,2]
[393662208,1762891849963,-500.0,0.00055342,2]
[393662209,1762891849972,-500.0,0.00055342,2]
[393662210,1762891849982,-500.0,0.00055342,30]
[393662211,1762891849992,-500.0,0.00055342,2]
[393662212,1762891850001,-500.0,0.00055342,2]
[393662213,1762891850011,-500.0,0.00055342,3]
[393662214,1762891850020,-500.0,0.00055342,2]
[393662215,1762891850030,-500.0,0.00055342,120]
[393662216,1762891850039,-2790.82,0.00055342,120]
[393662217,1762891850048,-156.01345,0.00055342,120]
[393662218,1762891850058,-500.0,0.00055342,120]
[393662219,1762891850068,-500.0,0.00055342,30]
[393662220,1762891850077,-200.0,0.00055342,120]
[393662221,1762891850087,-200.0,0.00055342,120]
[393662222,1762891850096,-500.0,0.00055342,2]
[393662223,1762891850105,-200.0,0.00055342,120]
[393662224,1762891850115,-200.0,0.00055342,120]
[393662225,1762891850124,-500.0,0.00055342,2]
[393662226,1762891850133,-500.0,0.00055616,2]
[393662227,1762891850143,-500.0,0.00055616,2]
[393662228,1762891850152,-500.0,0.00055616,2]
[393662229,1762891850162,-500.0,0.00055616,30]
[393662230,1762891850171,-500.0,0.00055616,2]
[393662231,1762891850180,-500.0,0.00055616,2]
[393662232,1762891850190,-500.0,0.00055616,3]
[393662233,1762891850200,-500.0,0.00055616,2]
[393662234,1762891850210,-500.0,0.00055616,120]
[393662235,1762891850219,-2790.82,0.00055616,120]
[393662236,1762891850229,-500.0,0.00055616,120]
[393662237,1762891850238,-500.0,0.00055616,30]
[393662238,1762891850248,-500.0,0.00055616,2]
[393662239,1762891850258,-641.09808053,0.0005589,2]
[393662240,1762891850267,-500.0,0.0005589,2]
[393662241,1762891850276,-500.0,0.0005589,2]
[393662242,1762891850285,-500.0,0.0005589,30]
[393662243,1762891850294,-500.0,0.0005589,2]
[393662244,1762891850304,-500.0,0.0005589,2]
[393662245,1762891850314,-500.0,0.0005589,3]
[393662246,1762891850327,-500.0,0.0005589,2]
[393662247,1762891850337,-500.0,0.0005589,120]
[393662248,1762891850346,-2790.82,0.0005589,120]
[393662249,1762891850355,-500.0,0.0005589,120]
[393662250,1762891850365,-500.0,0.0005589,30]
[393662251,1762891850374,-500.0,0.0005589,2]
[393662252,1762891850383,-156.0,0.00056,120]
[393662253,1762891850392,-500.0,0.00056164,2]
[393662254,1762891850401,-169.36614497,0.00056164,2]
[393662255,1762891850410,-500.0,0.00056164,30]
[393662256,1762891850419,-500.0,0.00056164,2]
[393662257,1762891850427,-500.0,0.00056164,2]
[393662258,1762891850437,-500.0,0.00056164,3]
[393662259,1762891850446,-500.0,0.00056164,2]
[393662260,1762891850455,-500.0,0.00056164,120]
[393662261,1762891850464,-2790.82,0.00056164,120]
[393662262,1762891850473,-207.04947388,0.00056164,120]
[393662263,1762891850484,-500.0,0.00056164,30]
[393662264,1762891850493,-151.0,0.00056164,120]
[393662265,1762891850502,-500.0,0.00056164,2]
[393662266,1762891850512,-500.0,0.00056438,2]
[393662267,1762891850521,-500.0,0.00056438,30]
[393662268,1762891850531,-500.0,0.00056438,2]
[393662269,1762891850540,-407.24832917,0.00056438,2]
[393662270,1762891850550,-500.0,0.00056438,3]
[393662271,1762891850560,-619.842144,0.00056438,2]
[393662272,1762891850569,-500.0,0.00056438,120]
[393662273,1762891850579,-2790.82,0.00056438,120]
[393662274,1762891850589,-292.75015243,0.00056438,30]
[393662275,1762891850598,-500.0,0.00056438,2]
[393662276,1762891850608,-160.0,0.00056701,6]
[393662277,1762891850618,-500.0,0.00056712,2]
[393662278,1762891850627,-500.0,0.00056712,30]
[393662279,1762891850636,-500.0,0.00056712,2]
[393662280,1762891850646,-500.0,0.00056712,3]
[393662281,1762891850656,-500.0,0.00056712,120]
[393662282,1762891850666,-2790.82,0.00056712,120]
[393662283,1762891850676,-397.551421,0.00056712,2]
[393662284,1762891850685,-500.0,0.00056986,2]
[393662285,1762891850696,-500.0,0.00056986,30]
[393662286,1762891850706,-500.0,0.00056986,2]
[393662287,1762891850716,-500.0,0.00056986,3]
[393662288,1762891850726,-529.33308603,0.00056986,120]
[393662289,1762891850735,-2790.82,0.00056986,120]
[393662290,1762891850744,-500.0,0.0005726,2]
[393662291,1762891850754,-500.0,0.0005726,30]
[393662292,1762891850763,-500.0,0.0005726,2]
[393662293,1762891850773,-239.22107958,0.0005726,3]
[393662294,1762891850783,-2790.82,0.0005726,120]
[393662295,1762891850792,-500.0,0.00057534,2]
[393662296,1762891850801,-500.0,0.00057534,30]
[393662297,1762891850811,-643.3106403,0.00057534,2]
[393662298,1762891850820,-2790.82,0.00057534,120]
[393662299,1762891850830,-165.440569,0.00057543,2]
[393662300,1762891850839,-500.0,0.00057808,2]
[393662301,1762891850848,-500.0,0.00057808,30]
[393662302,1762891850860,-2790.82,0.00057808,120]
[393662303,1762891850870,-151.0,0.00058082,120]
[393662304,1762891850879,-500.0,0.00058082,2]
[393662305,1762891850889,-500.0,0.00058082,30]
[393662306,1762891850900,-2790.82,0.00058082,120]
[393662307,1762891850910,-156.0,0.000581,120]
[393662308,1762891850920,-2228.41,0.00058116,30]
[393662309,1762891850929,-500.0,0.0005824,120]
[393662310,1762891850942,-500.0,0.00058356,2]
[393662311,1762891850952,-500.0,0.00058356,30]
[393662312,1762891850962,-2790.82,0.00058356,120]
[393662313,1762891850971,-2181.32153737,0.00058556,2]
[393662314,1762891850981,-500.0,0.0005863,2]
[393662315,1762891850990,-500.0,0.0005863,30]
[393662316,1762891851000,-626.23442434,0.0005863,2]
[393662317,1762891851009,-1127.22196382,0.0005863,2]
[393662318,1762891851019,-2003.9501579,0.0005863,2]
[393662319,1762891851028,-3131.17212172,0.0005863,2]
[393662320,1762891851038,-4508.88785528,0.0005863,2]
[393662321,1762891851047,-6137.09735857,0.0005863,2]
[393662322,1762891851056,-8015.80063161,0.0005863,2]
[393662323,1762891851066,-428.04860833,0.0005863,2]
[393662324,1762891851076,-504.17867206,0.0005863,2]
[393662325,1762891851087,-907.5216097,0.0005863,2]
[393662326,1762891851096,-1613.37175058,0.0005863,2]
[393662327,1762891851106,-2520.89336028,0.0005863,2]
[393662328,1762891851116,-205.69789638,0.0005863,2]
[393662329,1762891851126,-370.25621348,0.0005863,2]
[393662330,1762891851136,-2790.82,0.0005863,120]
[393662331,1762891851146,-2181.32153737,0.00058745,2]
[393662332,1762891851155,-500.0,0.00058904,2]
[393662333,1762891851165,-500.0,0.00058904,30]
[393662334,1762891851175,-2790.82,0.00058904,120]
[393662335,1762891851184,-200.0,0.00058983,120]
[393662336,1762891851194,-500.0,0.0005899,120]
[393662337,1762891851203,-1000.0,0.00059,120]
[393662338,1762891851212,-2181.32153737,0.00059022,2]
[393662339,1762891851222,-500.0,0.00059178,2]
[393662340,1762891851231,-500.0,0.00059178,30]
[393662341,1762891851241,-2790.82,0.00059178,120]
[393662342,1762891851251,-218.6127445,0.00059192,3]
[393662343,1762891851260,-874.45097799,0.00059192,3]
[393662344,1762891851270,-1967.51470049,0.00059192,3]
[393662345,1762891851280,-3497.80391197,0.00059192,3]
[393662346,1762891851290,-5459.85329385,0.00059192,3]
[393662347,1762891851300,-521.97321342,0.00059192,3]
[393662348,1762891851310,-2085.80496084,0.00059192,3]
[393662349,1762891851320,-270.76619094,0.00059192,3]
[393662350,1762891851329,-2181.32153737,0.0005924,2]
[393662351,1762891851339,-500.0,0.00059336,120]
[393662352,1762891851348,-500.0,0.0005939,120]
[393662353,1762891851358,-500.0,0.00059452,2]
[393662354,1762891851367,-500.0,0.00059452,30]
[393662355,1762891851377,-2790.82,0.00059452,120]
[393662356,1762891851387,-2181.32153737,0.00059544,2]
[393662357,1762891851398,-515.26786657,0.0005959,120]
[393662358,1762891851407,-500.0,0.00059726,2]
[393662359,1762891851494,-500.0,0.00059726,30]
[393662360,1762891851504,-2790.82,0.00059726,120]
[393662361,1762891851514,-3460.1769918,0.00059765,2]
[393662362,1762891851523,-6457.7903819,0.00059765,2]
[393662363,1762891851533,-372.6210995,0.00059765,2]
[393662364,1762891851543,-151.0,0.00059765,2]
[393662365,1762891851553,-151.0,0.00059765,2]
[393662366,1762891851563,-16653.4642211,0.00059765,2]
[393662367,1762891851572,-150.0,0.000598,120]
[393662368,1762891851583,-160.0,0.00059805,7]
[393662369,1762891851592,-319.16384483,0.00059805,5]
[393662370,1762891851601,-196.30762307,0.00059998,120]
[393662371,1762891851611,-39148.55800661,0.00059999,120]
[393662372,1762891851620,-516.23795238,0.00059999,2]
[393662373,1762891851630,-500.0,0.00059999,30]
[393662374,1762891851639,-5469.57,0.00059999,2]
[393662375,1762891851649,-2790.82,0.00059999,120]
[393662376,1762891851659,-200.0,0.00059999,120]
[393662377,1762891851668,-200.0,0.00059999,120]
[393662378,1762891851678,-200.0,0.00059999,120]
[393662379,1762891851688,-200.0,0.00059999,120]
[393662380,1762891851698,-151.00000001,0.00059999,120]
[393662381,1762891851708,-1000.0,0.0006,2]
[393662382,1762891851718,-1000.0,0.0006,120]
[393662383,1762891851728,-1000.0,0.0006,120]
[393662384,1762891851738,-236181.284637,0.0006,120]
[393662385,1762891851747,-430.00473113,0.0006,120]
[393662386,1762891851756,-272.11725961,0.0006,120]
[393662387,1762891851766,-13559.94031255,0.0006,120]
[393662388,1762891851775,-151.0,0.0006,2]
[393662389,1762891851784,-200.0,0.0006,120]
[393662390,1762891851793,-200.0,0.0006,120]
[393662391,1762891851803,-200.0,0.0006,120]
[393662392,1762891851812,-200.0,0.0006,120]
[393662393,1762891851821,-436.27130892,0.00060064,2]
[393662394,1762891851830,-156.0,0.000602,120]
[393662395,1762891851839,-2181.32153737,0.00060272,2]
[393662396,1762891851849,-500.0,0.00060273,30]
[393662397,1762891851863,-2790.82,0.00060273,120]
[393662398,1762891851872,-2181.32153737,0.000603,2]
[393662399,1762891851881,-180.0,0.00060393,120]
[393662400,1762891851891,-180.0,0.00060407,120]
[393662401,1762891851902,-299.0,0.00060412,120]